[Event "LASS Vårturneringar 2018"]
[Site "Linköping, Sweden"]
[Date "2018.05.11"]
[Round "3.4"]
[White "Amberts, Jens"]
[Black "Wahlund, Max"]
[Result "0-1"]
[TimeControl "90 min + 30 sec/move + 30 min/40 moves"]
[WhiteElo "1942"]
[BlackElo "2097"]

1. e4 {[%clk 01:30:58]} {[%emt 00:00:01]} e6 {[%clk 01:30:52]} {[%emt
00:00:08]} 2. d4 {[%clk 01:30:09]} {[%emt 00:01:18]} d5 {[%clk 01:31:20]}
{[%emt 00:00:03]} 3. exd5 {[%clk 01:30:32]} {[%emt 00:00:08]} exd5 {[%clk
01:31:46]} {[%emt 00:00:04]} 4. Bd3 {[%clk 01:30:51]} {[%emt 00:00:10]} Bd6
{[%clk 01:32:11]} {[%emt 00:00:06]} 5. Nf3 {[%clk 01:31:13]} {[%emt 00:00:07]}
Nc6 {[%clk 01:32:31]} {[%emt 00:00:10]} 6. O-O {[%clk 01:31:12]} {[%emt
00:00:29]} Bg4 {[%clk 01:32:41]} {[%emt 00:00:20]} 7. c3 {[%clk 01:31:41]}
{[%emt 00:00:02]} Qd7 {[%clk 01:32:31]} {[%emt 00:00:40]} 8. Re1+ {[%clk
01:31:52]} {[%emt 00:00:18]} Nge7 {[%clk 01:32:59]} {[%emt 00:00:03]} 9. Nbd2
{[%clk 01:31:21]} {[%emt 00:01:01]} O-O-O {[%clk 01:32:52]} {[%emt 00:00:38]}
10. b4 {[%clk 01:22:45]} {[%emt 00:09:06]} Rde8 {[%clk 01:32:35]} {[%emt
00:00:47]} 11. a4 {[%clk 01:22:24]} {[%emt 00:00:50]} Ng6 {[%clk 01:32:22]}
{[%emt 00:00:43]} 12. Rxe8+ {[%clk 01:22:39]} {[%emt 00:00:15]} Rxe8 {[%clk
01:32:32]} {[%emt 00:00:19]} 13. a5 {[%clk 01:00:43]} {[%emt 00:22:27]} Nf4
{[%clk 01:32:09]} {[%emt 00:00:54]} 14. Bf1 {[%clk 01:00:16]} {[%emt 00:00:55]}
Qf5 {[%clk 01:28:35]} {[%emt 00:04:05]} 15. b5 {[%clk 00:59:24]} {[%emt
00:01:22]} Nd8 {[%clk 01:26:20]} {[%emt 00:02:45]} 16. c4 {[%clk 00:55:29]}
{[%emt 00:04:24]} dxc4 {[%clk 01:18:47]} {[%emt 00:08:03]} 17. Nxc4 {[%clk
00:55:06]} {[%emt 00:00:51]} Nh3+ {[%clk 01:18:59]} {[%emt 00:00:21]} 18. gxh3
{[%clk 00:52:45]} {[%emt 00:02:50]} Bxf3 {[%clk 01:18:57]} {[%emt 00:00:32]} 19.
Nxd6+ {[%clk 00:51:12]} {[%emt 00:02:03]} cxd6 {[%clk 01:19:25]} {[%emt
00:00:03]} 20. Qd3 {[%clk 00:50:45]} {[%emt 00:00:57]} Qxd3 {[%clk 01:13:56]}
{[%emt 00:05:59]} 21. Bxd3 {[%clk 00:51:13]} {[%emt 00:00:02]} Re1+ {[%clk
01:14:20]} {[%emt 00:00:07]} 22. Bf1 {[%clk 00:51:25]} {[%emt 00:00:17]} Be2
{[%clk 01:14:48]} {[%emt 00:00:02]} 23. Bb2 {[%clk 00:51:43]} {[%emt 00:00:12]}
Rxa1 {[%clk 01:15:15]} {[%emt 00:00:04]} 24. Bxa1 {[%clk 00:51:23]} {[%emt
00:00:50]} Bxf1 {[%clk 01:15:42]} {[%emt 00:00:03]} 25. Kxf1 {[%clk 00:51:35]}
{[%emt 00:00:17]} d5 {[%clk 01:16:09]} {[%emt 00:00:03]} 26. Ke2 {[%clk
00:48:42]} {[%emt 00:03:22]} a6 {[%clk 01:14:40]} {[%emt 00:02:01]} 27. bxa6
{[%clk 00:47:22]} {[%emt 00:01:50]} bxa6 {[%clk 01:15:08]} {[%emt 00:00:02]} 28.
Kf3 {[%clk 00:46:20]} {[%emt 00:01:32]} Kd7 {[%clk 01:15:36]} {[%emt 00:00:02]}
29. Kf4 {[%clk 00:46:40]} {[%emt 00:00:08]} Ke6 {[%clk 01:16:01]} {[%emt
00:00:07]} 30. Bc3 {[%clk 00:46:03]} {[%emt 00:01:06]} Nc6 {[%clk 01:15:22]}
{[%emt 00:01:09]} 31. h4 {[%clk 00:44:59]} {[%emt 00:01:34]} h5 {[%clk
01:14:08]} {[%emt 00:01:44]} 32. Kg5 {[%clk 00:42:05]} {[%emt 00:03:23]} g6
{[%clk 01:14:35]} {[%emt 00:00:04]} 33. h3 {[%clk 00:41:58]} {[%emt 00:00:36]}
Ne7 {[%clk 01:09:50]} {[%emt 00:05:15]} 34. Bb4 {[%clk 00:39:30]} {[%emt
00:02:58]} f6+ {[%clk 01:09:10]} {[%emt 00:01:10]} 35. Kh6 {[%clk 00:35:49]}
{[%emt 00:04:11]} Nc6 {[%clk 01:09:38]} {[%emt 00:00:03]} 36. Bc5 {[%clk
00:34:23]} {[%emt 00:01:56]} Kf7 {[%clk 01:08:37]} {[%emt 00:01:31]} 37. Bb6
{[%clk 00:34:38]} {[%emt 00:00:15]} Ne7 {[%clk 01:08:54]} {[%emt 00:00:13]} 0-1

[Event "LASS Vårturneringar 2018"]
[Site "Linköping, Sweden"]
[Date "2018.05.11"]
[Round "3.7"]
[White "Garner, Mårten"]
[Black "Larsson, Mille"]
[Result "1-0"]
[TimeControl "90 min + 30 sec/move + 30 min/40 moves"]
[WhiteElo "1872"]
[BlackElo "1374"]

1. d4 {[%clk 01:30:50]} {[%emt 00:00:06]} Nf6 {[%clk 01:30:51]} {[%emt
00:00:10]} 2. c4 {[%clk 01:30:33]} {[%emt 00:00:47]} e6 {[%clk 01:30:27]}
{[%emt 00:00:54]} 3. Nc3 {[%clk 01:30:54]} {[%emt 00:00:09]} c5 {[%clk
01:30:41]} {[%emt 00:00:16]} 4. d5 {[%clk 01:31:17]} {[%emt 00:00:08]} d6
{[%clk 01:27:33]} {[%emt 00:03:38]} 5. e4 {[%clk 01:31:11]} {[%emt 00:00:35]}
Nbd7 {[%clk 01:25:34]} {[%emt 00:02:30]} 6. Nge2 {[%clk 01:31:14]} {[%emt
00:00:26]} Ne5 {[%clk 01:25:17]} {[%emt 00:00:48]} 7. Ng3 {[%clk 01:31:16]}
{[%emt 00:00:28]} Qb6 {[%clk 01:23:05]} {[%emt 00:02:42]} 8. f4 {[%clk
01:23:22]} {[%emt 00:08:23]} Ng6 {[%clk 01:18:51]} {[%emt 00:04:45]} 9. Bd3
{[%clk 01:19:17]} {[%emt 00:04:35]} Bd7 {[%clk 01:16:25]} {[%emt 00:02:56]} 10.
Qc2 {[%clk 01:18:14]} {[%emt 00:01:32]} Be7 {[%clk 01:13:11]} {[%emt 00:03:45]}
11. O-O {[%clk 01:17:05]} {[%emt 00:01:39]} Ng4 {[%clk 01:12:56]} {[%emt
00:00:45]} 12. Qe2 {[%clk 01:12:32]} {[%emt 00:05:00]} Nh6 {[%clk 01:03:31]}
{[%emt 00:09:58]} 13. Be3 {[%clk 01:08:33]} {[%emt 00:04:27]} O-O-O {[%clk
01:00:57]} {[%emt 00:03:05]} 14. a3 {[%clk 01:06:31]} {[%emt 00:02:33]} Rdf8
{[%clk 00:56:35]} {[%emt 00:04:51]} 15. b4 {[%clk 01:05:06]} {[%emt 00:01:55]}
f5 {[%clk 00:55:30]} {[%emt 00:01:35]} 16. bxc5 {[%clk 01:05:13]} {[%emt
00:00:23]} dxc5 {[%clk 00:54:27]} {[%emt 00:01:34]} 17. e5 {[%clk 00:58:07]}
{[%emt 00:07:36]} Ng4 {[%clk 00:53:48]} {[%emt 00:01:10]} 18. dxe6 {[%clk
00:51:47]} {[%emt 00:06:49]} Bxe6 {[%clk 00:49:32]} {[%emt 00:04:01]} 19. Nd5
{[%clk 00:49:20]} {[%emt 00:03:42]} Qc6 {[%clk 00:45:42]} {[%emt 00:04:21]} 20.
Nxf5 {[%clk 00:44:45]} {[%emt 00:05:05]} Qd7 {[%emt 00:11:35]} 21. Nfxe7+
{[%clk 00:42:32]} {[%emt 00:02:41]} Nxe7 {[%clk 00:33:39]} {[%emt 00:01:31]} 22.
Bxc5 {[%clk 00:42:20]} {[%emt 00:00:41]} Rf7 {[%clk 00:29:20]} {[%emt
00:04:50]} 23. Nxe7+ {[%clk 00:40:22]} {[%emt 00:02:28]} 1-0

[Event "LASS Vårturneringar 2018"]
[Site "Linköping, Sweden"]
[Date "2018.05.11"]
[Round "3.8"]
[White "Knutsson, Håkan"]
[Black "Sahlström, Alex"]
[Result "1-0"]
[TimeControl "90 min + 30 sec/move + 30 min/40 moves"]
[WhiteElo "1865"]
[BlackElo "1463"]

1. e4 {[%clk 01:30:54]} {[%emt 00:00:04]} c5 {[%clk 01:30:51]} {[%emt
00:00:10]} 2. Nf3 {[%clk 01:31:15]} {[%emt 00:00:09]} d6 {[%clk 01:31:14]}
{[%emt 00:00:08]} 3. d4 {[%clk 01:31:37]} {[%emt 00:00:08]} cxd4 {[%clk
01:31:36]} {[%emt 00:00:09]} 4. Nxd4 {[%clk 01:32:00]} {[%emt 00:00:07]} Nf6
{[%clk 01:32:00]} {[%emt 00:00:07]} 5. Nc3 {[%clk 01:32:19]} {[%emt 00:00:10]}
g6 {[%clk 01:32:15]} {[%emt 00:00:15]} 6. Be3 {[%clk 01:32:35]} {[%emt
00:00:13]} Bg7 {[%clk 01:32:33]} {[%emt 00:00:12]} 7. f3 {[%clk 01:32:55]}
{[%emt 00:00:11]} O-O {[%clk 01:32:40]} {[%emt 00:00:24]} 8. Qd2 {[%clk
01:33:06]} {[%emt 00:00:19]} Nc6 {[%clk 01:33:01]} {[%emt 00:00:08]} 9. O-O-O
{[%clk 01:33:23]} {[%emt 00:00:13]} d5 {[%clk 01:31:44]} {[%emt 00:01:47]} 10.
exd5 {[%clk 01:33:15]} {[%emt 00:00:38]} Nxd5 {[%clk 01:31:44]} {[%emt
00:00:30]} 11. Nxc6 {[%clk 01:33:23]} {[%emt 00:00:23]} bxc6 {[%clk 01:31:59]}
{[%emt 00:00:14]} 12. Bd4 {[%clk 01:33:42]} {[%emt 00:00:11]} e5 {[%clk
01:28:14]} {[%emt 00:04:15]} 13. Bc5 {[%clk 01:32:32]} {[%emt 00:01:39]} Re8
{[%clk 01:23:00]} {[%emt 00:05:45]} 14. Nxd5 {[%clk 01:22:56]} {[%emt
00:10:05]} cxd5 {[%clk 01:19:33]} {[%emt 00:03:58]} 15. Qxd5 {[%clk 01:21:41]}
{[%emt 00:01:44]} Qxd5 {[%clk 01:17:18]} {[%emt 00:02:45]} 16. Rxd5 {[%clk
01:22:08]} {[%emt 00:00:03]} Be6 {[%clk 01:16:35]} {[%emt 00:01:13]} 17. Rd1
{[%clk 01:22:21]} {[%emt 00:00:17]} Rec8 {[%clk 01:07:10]} {[%emt 00:09:57]} 18.
Be3 {[%clk 01:10:55]} {[%emt 00:11:55]} Bxa2 {[%clk 01:05:09]} {[%emt
00:02:31]} 19. Ba6 {[%clk 01:07:16]} {[%emt 00:04:09]} Rc7 {[%clk 01:03:44]}
{[%emt 00:01:55]} 20. Rd3 {[%clk 01:05:41]} {[%emt 00:02:03]} Rb8 {[%clk
00:51:56]} {[%emt 00:12:19]} 21. Rhd1 {[%clk 01:03:07]} {[%emt 00:03:04]} Bf6
{[%clk 00:31:40]} {[%emt 00:20:47]} 22. Rd7 {[%clk 00:58:45]} {[%emt 00:04:52]}
Rxd7 {[%clk 00:22:24]} {[%emt 00:09:47]} 23. Rxd7 {[%clk 00:58:15]} {[%emt
00:00:58]} Be6 {[%clk 00:20:39]} {[%emt 00:02:16]} 24. Rxa7 {[%clk 00:57:44]}
{[%emt 00:01:01]} e4 {[%clk 00:20:31]} {[%emt 00:00:37]} 25. c3 {[%clk
00:51:16]} {[%emt 00:06:58]} exf3 {[%clk 00:18:00]} {[%emt 00:03:02]} 26. gxf3
{[%clk 00:51:43]} {[%emt 00:00:02]} Bb3 {[%clk 00:16:43]} {[%emt 00:01:48]} 27.
Rb7 {[%clk 00:45:29]} {[%emt 00:06:43]} Re8 {[%clk 00:14:44]} {[%emt 00:02:29]}
28. Kd2 {[%clk 00:42:10]} {[%emt 00:03:49]} Bd5 {[%clk 00:13:13]} {[%emt
00:02:00]} 29. Rb6 {[%clk 00:42:24]} {[%emt 00:00:17]} Bd8 {[%clk 00:12:56]}
{[%emt 00:00:47]} 30. Rb8 {[%clk 00:41:48]} {[%emt 00:01:06]} Kg7 {[%clk
00:07:38]} {[%emt 00:05:48]} 31. Bb5 {[%clk 00:40:31]} {[%emt 00:01:46]} Rf8
{[%clk 00:07:28]} {[%emt 00:00:42]} 32. Ke2 {[%clk 00:39:50]} {[%emt 00:01:09]}
Bc7 {[%clk 00:06:51]} {[%emt 00:01:07]} 33. Bh6+ {[%clk 00:40:05]} {[%emt
00:00:15]} Kxh6 {[%clk 00:06:41]} {[%emt 00:00:40]} 34. Rxf8 {[%clk 00:40:27]}
{[%emt 00:00:09]} Bxh2 {[%clk 00:06:41]} {[%emt 00:00:30]} 35. c4 {[%clk
00:40:19]} {[%emt 00:00:37]} Be6 {[%clk 00:06:49]} {[%emt 00:00:22]} 36. Ra8
{[%clk 00:40:05]} {[%emt 00:00:44]} Kg5 {[%clk 00:06:44]} {[%emt 00:00:36]} 37.
c5 {[%clk 00:38:58]} {[%emt 00:01:37]} Bd5 {[%clk 00:05:16]} {[%emt 00:01:58]}
38. Ra3 {[%clk 00:38:49]} {[%emt 00:00:38]} h5 {[%clk 00:03:49]} {[%emt
00:01:58]} 39. Rd3 {[%clk 00:38:44]} {[%emt 00:00:34]} Be6 {[%clk 00:03:51]}
{[%emt 00:00:28]} 40. Kf2 {[%clk 00:36:56]} {[%emt 00:02:17]} h4 {[%clk
00:03:27]} {[%emt 00:00:55]} 41. Bd7 {[%clk 00:36:46]} {[%emt 00:00:40]} Bc4
{[%clk 00:01:24]} {[%emt 00:02:33]} 42. Rc3 {[%clk 00:36:42]} {[%emt 00:00:33]}
Bd5 {[%clk 00:30:10]} {[%emt 00:01:44]} 43. c6 {[%clk 01:06:15]} {[%emt
00:00:56]} Bc7 {[%clk 00:29:10]} {[%emt 00:01:30]} 44. Rd3 {[%clk 01:04:49]}
{[%emt 00:01:56]} Bc4 {[%clk 00:26:57]} {[%emt 00:02:43]} 45. Rd1 {[%clk
01:04:12]} {[%emt 00:01:06]} f5 {[%clk 00:25:46]} {[%emt 00:01:42]} 46. Be8
{[%clk 01:03:38]} {[%emt 00:01:04]} Bb6+ {[%clk 00:22:45]} {[%emt 00:03:31]} 47.
Kg2 {[%clk 01:03:23]} {[%emt 00:00:43]} Be2 {[%clk 00:21:10]} {[%emt 00:02:07]}
48. Re1 {[%clk 01:01:45]} {[%emt 00:02:07]} h3+ {[%clk 00:19:37]} {[%emt
00:02:04]} 49. Kg3 {[%clk 00:59:22]} {[%emt 00:02:52]} f4+ {[%clk 00:17:42]}
{[%emt 00:02:26]} 50. Kxh3 {[%clk 00:58:43]} {[%emt 00:01:08]} Bxf3 {[%clk
00:17:23]} {[%emt 00:00:51]} 51. Bd7 {[%clk 00:58:57]} {[%emt 00:00:16]} Bd5
{[%clk 00:16:03]} {[%emt 00:01:50]} 52. Re5+ {[%clk 00:59:13]} {[%emt
00:00:13]} 1-0

[Event "LASS Vårturneringar 2018"]
[Site "Linköping, Sweden"]
[Date "2018.05.11"]
[Round "3.5"]
[White "Olsson, Simon"]
[Black "Alos, Raul Toledano"]
[Result "1-0"]
[TimeControl "90 min + 30 sec/move + 30 min/40 moves"]
[WhiteElo "2110"]
[BlackElo "1772"]

1. d4 {[%clk 01:30:58]} {[%emt 00:00:02]} Nf6 {[%clk 01:30:52]} {[%emt
00:00:09]} 2. Bg5 {[%clk 01:31:26]} {[%emt 00:00:02]} d5 {[%clk 01:30:18]}
{[%emt 00:01:04]} 3. Bxf6 {[%clk 01:31:19]} {[%emt 00:00:37]} gxf6 {[%clk
01:30:09]} {[%emt 00:00:38]} 4. c4 {[%clk 01:31:44]} {[%emt 00:00:05]} Nc6
{[%clk 01:29:48]} {[%emt 00:00:51]} 5. e3 {[%clk 01:29:02]} {[%emt 00:03:12]}
Bf5 {[%clk 01:29:27]} {[%emt 00:00:52]} 6. Nc3 {[%clk 01:28:26]} {[%emt
00:01:06]} dxc4 {[%clk 01:29:27]} {[%emt 00:00:30]} 7. Bxc4 {[%clk 01:28:30]}
{[%emt 00:00:26]} e6 {[%clk 01:29:49]} {[%emt 00:00:08]} 8. Nge2 {[%clk
01:18:57]} {[%emt 00:10:02]} e5 {[%clk 01:27:36]} {[%emt 00:02:43]} 9. Qb3
{[%clk 01:09:21]} {[%emt 00:10:06]} Qd7 {[%clk 01:26:56]} {[%emt 00:01:11]} 10.
Bxf7+ {[%clk 01:07:45]} {[%emt 00:02:05]} Qxf7 {[%clk 01:27:09]} {[%emt
00:00:16]} 11. Qxb7 {[%clk 01:08:07]} {[%emt 00:00:08]} Rb8 {[%clk 01:19:10]}
{[%emt 00:08:29]} 12. Qxc6+ {[%clk 01:06:57]} {[%emt 00:01:40]} Kd8 {[%clk
01:19:09]} {[%emt 00:00:31]} 13. O-O-O {[%clk 01:02:33]} {[%emt 00:04:54]} e4
{[%clk 01:17:53]} {[%emt 00:01:47]} 14. Ng3 {[%clk 00:55:18]} {[%emt 00:07:44]}
Bd7 {[%clk 01:17:36]} {[%emt 00:00:48]} 15. Qxe4 {[%clk 00:55:11]} {[%emt
00:00:38]} Bb4 {[%clk 01:17:42]} {[%emt 00:00:24]} 16. d5 {[%clk 00:54:51]}
{[%emt 00:00:49]} Re8 {[%clk 01:17:38]} {[%emt 00:00:33]} 17. Qd3 {[%clk
00:54:43]} {[%emt 00:00:38]} f5 {[%clk 01:17:06]} {[%emt 00:01:03]} 18. Nge2
{[%clk 00:53:54]} {[%emt 00:01:19]} Kc8 {[%clk 01:16:05]} {[%emt 00:01:31]} 19.
a3 {[%clk 00:50:20]} {[%emt 00:04:04]} Ba5 {[%clk 01:13:42]} {[%emt 00:02:52]}
1-0

[Event "LASS Vårturneringar 2018"]
[Site "Linköping, Sweden"]
[Date "2018.05.11"]
[Round "3.2"]
[White "Johansson, Henrik"]
[Black "Nörager, Mattias"]
[Result "1-0"]
[TimeControl "90 min + 30 sec/move + 30 min/40 moves"]
[WhiteElo "1675"]
[BlackElo "1706"]

1. d4 {[%clk 01:30:40]} {[%emt 00:00:19]} c5 {[%clk 01:21:57]} {[%emt
00:09:03]} 2. Nf3 {[%clk 01:30:38]} {[%emt 00:00:31]} f5 {[%clk 01:20:36]}
{[%emt 00:01:51]} 3. Bf4 {[%clk 01:30:20]} {[%emt 00:00:47]} cxd4 {[%clk
01:17:35]} {[%emt 00:03:32]} 4. Bxb8 {[%clk 01:27:31]} {[%emt 00:03:19]} Rxb8
{[%clk 01:17:50]} {[%emt 00:00:15]} 5. Nxd4 {[%clk 01:26:56]} {[%emt 00:01:06]}
Qb6 {[%clk 01:17:47]} {[%emt 00:00:33]} 6. Nc3 {[%clk 01:25:51]} {[%emt
00:01:34]} e6 {[%clk 01:13:04]} {[%emt 00:05:14]} 7. e4 {[%clk 01:21:55]}
{[%emt 00:04:25]} Qxb2 {[%clk 01:10:12]} {[%emt 00:03:23]} 8. Na4 {[%clk
01:07:02]} {[%emt 00:15:22]} Bb4+ {[%clk 01:09:54]} {[%emt 00:00:49]} 9. Ke2
{[%clk 01:06:03]} {[%emt 00:01:29]} Qa3 {[%clk 01:09:54]} {[%emt 00:00:30]} 10.
c3 {[%clk 01:04:09]} {[%emt 00:02:25]} Bxc3 {[%clk 01:07:03]} {[%emt 00:03:21]}
11. Nb5 {[%clk 01:03:24]} {[%emt 00:01:13]} Qb4 {[%clk 00:59:45]} {[%emt
00:07:39]} 12. Naxc3 {[%clk 01:01:44]} {[%emt 00:02:19]} a6 {[%clk 00:55:50]}
{[%emt 00:04:25]} 13. Nd6+ {[%clk 00:59:48]} {[%emt 00:02:24]} Ke7 {[%clk
00:55:31]} {[%emt 00:00:51]} 14. Nxf5+ {[%clk 00:59:27]} {[%emt 00:00:51]} Kf7
{[%clk 00:53:31]} {[%emt 00:02:30]} 15. Nd6+ {[%clk 00:56:10]} {[%emt
00:03:46]} Ke7 {[%clk 00:53:52]} {[%emt 00:00:10]} 16. Qd2 {[%clk 00:48:02]}
{[%emt 00:08:38]} Qxd6 {[%clk 00:53:27]} {[%emt 00:00:56]} 17. Qg5+ {[%clk
00:46:06]} {[%emt 00:02:25]} Kf7 {[%clk 00:51:50]} {[%emt 00:02:05]} 18. Rd1
{[%clk 00:45:25]} {[%emt 00:01:13]} Qc7 {[%clk 00:49:32]} {[%emt 00:02:49]} 19.
Rd3 {[%clk 00:44:21]} {[%emt 00:01:33]} d6 {[%clk 00:44:02]} {[%emt 00:06:00]}
20. Kd2 {[%clk 00:29:56]} {[%emt 00:14:55]} Nf6 {[%clk 00:43:58]} {[%emt
00:00:35]} 21. Be2 {[%clk 00:28:43]} {[%emt 00:01:41]} Qxc3+ {[%clk 00:44:07]}
{[%emt 00:00:22]} 22. Rxc3 {[%clk 00:28:22]} {[%emt 00:00:52]} Nxe4+ {[%clk
00:44:28]} {[%emt 00:00:09]} 23. Ke3 {[%clk 00:28:13]} {[%emt 00:00:38]} Nxg5
{[%clk 00:44:48]} {[%emt 00:00:11]} 24. h4 {[%clk 00:28:25]} {[%emt 00:00:18]}
Kf6 {[%clk 00:42:47]} {[%emt 00:02:31]} 25. hxg5+ {[%clk 00:27:01]} {[%emt
00:01:54]} Kxg5 {[%clk 00:42:13]} {[%emt 00:01:04]} 26. Rc7 {[%clk 00:23:37]}
{[%emt 00:03:54]} g6 {[%clk 00:38:21]} {[%emt 00:04:22]} 27. f4+ {[%clk
00:21:42]} {[%emt 00:02:24]} Kf6 {[%clk 00:38:02]} {[%emt 00:00:50]} 28. g4
{[%clk 00:22:01]} {[%emt 00:00:11]} e5 {[%clk 00:37:32]} {[%emt 00:01:00]} 29.
g5+ {[%clk 00:22:14]} {[%emt 00:00:17]} Kf5 {[%clk 00:32:52]} {[%emt 00:05:10]}
30. Rf7+ {[%clk 00:20:03]} {[%emt 00:02:40]} Ke6 {[%clk 00:32:54]} {[%emt
00:00:28]} 31. Bc4+ {[%clk 00:19:02]} {[%emt 00:01:30]} d5 {[%clk 00:33:12]}
{[%emt 00:00:13]} 32. Rf6+ {[%clk 00:19:23]} {[%emt 00:00:09]} Kd7 {[%clk
00:31:33]} {[%emt 00:02:10]} 33. Rd1 {[%clk 00:19:34]} {[%emt 00:00:18]} d4+
{[%clk 00:30:14]} {[%emt 00:01:49]} 34. Ke4 {[%clk 00:19:05]} {[%emt 00:00:58]}
b5 {[%clk 00:29:14]} {[%emt 00:01:30]} 35. Be6+ {[%clk 00:18:47]} {[%emt
00:00:48]} Ke7 {[%clk 00:28:59]} {[%emt 00:00:46]} 36. Kxe5 {[%clk 00:18:18]}
{[%emt 00:00:59]} Bxe6 {[%clk 00:27:43]} {[%emt 00:01:45]} 37. Rxe6+ {[%clk
00:18:40]} {[%emt 00:00:08]} Kf7 {[%clk 00:28:02]} {[%emt 00:00:12]} 38. Rxd4
{[%clk 00:18:00]} {[%emt 00:01:10]} Rhe8 {[%clk 00:27:29]} {[%emt 00:01:01]} 39.
Rd7+ {[%clk 00:17:50]} {[%emt 00:00:40]} Kg8 {[%clk 00:27:41]} {[%emt
00:00:17]} 40. Rde7 {[%clk 00:11:58]} {[%emt 00:06:24]} Rxe7 {[%clk 00:27:20]}
{[%emt 00:00:51]} 41. Rxe7 {[%clk 00:12:04]} {[%emt 00:00:24]} b4 {[%clk
00:27:24]} {[%emt 00:00:27]} 42. Kf6 {[%clk 00:10:23]} {[%emt 00:02:10]} a5
{[%clk 00:26:39]} {[%emt 00:01:15]} 43. Ra7 {[%clk 00:10:21]} {[%emt 00:00:31]}
Rf8+ {[%clk 00:26:54]} {[%emt 00:00:16]} 44. Ke5 {[%clk 00:10:02]} {[%emt
00:00:48]} Rf5+ {[%clk 00:26:53]} {[%emt 00:00:33]} 45. Ke4 {[%clk 00:09:53]}
{[%emt 00:00:38]} Rb5 {[%clk 00:26:43]} {[%emt 00:00:39]} 46. Ra8+ {[%clk
00:10:03]} {[%emt 00:00:21]} Kf7 {[%clk 00:24:19]} {[%emt 00:02:55]} 47. Ra7+
{[%clk 00:10:25]} {[%emt 00:00:08]} Ke6 {[%clk 00:22:55]} {[%emt 00:01:54]} 48.
Rxh7 {[%clk 00:08:29]} {[%emt 00:02:25]} b3 {[%clk 00:23:08]} {[%emt 00:00:19]}
49. axb3 {[%clk 00:08:37]} {[%emt 00:00:22]} Rxb3 {[%clk 00:22:24]} {[%emt
00:01:14]} 50. Rg7 {[%clk 00:08:31]} {[%emt 00:00:36]} Rb4+ {[%clk 00:22:17]}
{[%emt 00:00:38]} 51. Kf3 {[%clk 00:08:44]} {[%emt 00:00:16]} Rb3+ {[%clk
00:21:35]} {[%emt 00:01:13]} 52. Kg4 {[%clk 00:09:03]} {[%emt 00:00:11]} a4
{[%clk 00:21:29]} {[%emt 00:00:36]} 53. Rxg6+ {[%clk 00:09:23]} {[%emt
00:00:09]} Kf7 {[%clk 00:20:57]} {[%emt 00:01:03]} 54. Ra6 {[%clk 00:09:13]}
{[%emt 00:00:40]} Rb4 {[%clk 00:21:02]} {[%emt 00:00:25]} 55. g6+ {[%clk
00:09:24]} {[%emt 00:00:18]} Ke7 {[%clk 00:19:45]} {[%emt 00:01:47]} 56. Kg5
{[%clk 00:09:37]} {[%emt 00:00:17]} Kd7 {[%clk 00:19:58]} {[%emt 00:00:17]} 57.
f5 {[%clk 00:09:35]} {[%emt 00:00:32]} 1-0

[Event "LASS Vårturneringar 2018"]
[Site "Linköping, Sweden"]
[Date "2018.05.11"]
[Round "3.6"]
[White "Bernhard, Jonathan"]
[Black "Tiger-Norqvist, Axel"]
[Result "0-1"]
[TimeControl "90 min + 30 sec/move + 30 min/40 moves"]
[WhiteElo "1926"]
[BlackElo "2146"]

1. Nf3 {[%clk 01:30:58]} {[%emt 00:00:02]} Nf6 {[%clk 01:30:54]} {[%emt
00:00:07]} 2. c4 {[%clk 01:31:23]} {[%emt 00:00:05]} g6 {[%clk 01:31:18]}
{[%emt 00:00:06]} 3. Nc3 {[%clk 01:31:48]} {[%emt 00:00:04]} Bg7 {[%clk
01:31:41]} {[%emt 00:00:07]} 4. e4 {[%clk 01:32:12]} {[%emt 00:00:06]} d6
{[%clk 01:32:05]} {[%emt 00:00:07]} 5. d4 {[%clk 01:32:30]} {[%emt 00:00:12]}
O-O {[%clk 01:32:16]} {[%emt 00:00:19]} 6. h3 {[%clk 01:31:43]} {[%emt
00:01:16]} e5 {[%clk 01:28:38]} {[%emt 00:04:09]} 7. Be3 {[%clk 01:31:59]}
{[%emt 00:00:14]} exd4 {[%clk 01:26:58]} {[%emt 00:02:10]} 8. Nxd4 {[%clk
01:32:14]} {[%emt 00:00:14]} Nc6 {[%clk 01:27:05]} {[%emt 00:00:23]} 9. g4
{[%clk 01:28:21]} {[%emt 00:04:23]} Re8 {[%clk 01:26:05]} {[%emt 00:01:30]} 10.
Bg2 {[%clk 01:27:42]} {[%emt 00:01:08]} Nxd4 {[%clk 01:21:32]} {[%emt
00:05:05]} 11. Bxd4 {[%clk 01:27:58]} {[%emt 00:00:13]} Be6 {[%clk 01:15:51]}
{[%emt 00:06:11]} 12. Qb3 {[%clk 01:15:36]} {[%emt 00:12:51]} Nxe4 {[%clk
01:01:53]} {[%emt 00:14:30]} 13. Nxe4 {[%clk 01:10:22]} {[%emt 00:05:42]} Bxd4
{[%clk 01:01:54]} {[%emt 00:00:31]} 14. O-O-O {[%clk 01:10:47]} {[%emt
00:00:04]} Be5 {[%clk 01:00:39]} {[%emt 00:01:45]} 15. Kb1 {[%clk 01:08:32]}
{[%emt 00:02:44]} Qe7 {[%clk 00:41:46]} {[%emt 00:19:24]} 16. f4 {[%clk
00:59:27]} {[%emt 00:09:34]} Bxf4 {[%clk 00:39:56]} {[%emt 00:02:20]} 17. Rhf1
{[%clk 00:58:29]} {[%emt 00:01:28]} Be5 {[%clk 00:40:16]} {[%emt 00:00:10]} 18.
Rd5 {[%clk 00:53:02]} {[%emt 00:05:57]} Bxd5 {[%clk 00:38:54]} {[%emt
00:01:52]} 19. cxd5 {[%clk 00:53:26]} {[%emt 00:00:05]} c5 {[%clk 00:37:18]}
{[%emt 00:02:07]} 20. g5 {[%clk 00:46:54]} {[%emt 00:07:01]} h5 {[%clk
00:26:53]} {[%emt 00:10:55]} 21. a3 {[%clk 00:40:27]} {[%emt 00:06:57]} b5
{[%clk 00:25:57]} {[%emt 00:01:27]} 22. Qd1 {[%clk 00:32:02]} {[%emt 00:08:54]}
b4 {[%clk 00:15:53]} {[%emt 00:10:35]} 23. a4 {[%clk 00:31:15]} {[%emt
00:01:16]} b3 {[%clk 00:15:33]} {[%emt 00:00:51]} 24. Qd2 {[%clk 00:19:02]}
{[%emt 00:12:43]} Qd7 {[%clk 00:13:49]} {[%emt 00:02:15]} 25. Rf4 {[%clk
00:18:16]} {[%emt 00:01:15]} Bxf4 {[%clk 00:07:37]} {[%emt 00:06:42]} 26. Qxf4
{[%clk 00:17:32]} {[%emt 00:01:13]} Rxe4 {[%clk 00:07:46]} {[%emt 00:00:23]} 27.
Bxe4 {[%clk 00:17:10]} {[%emt 00:00:51]} Qxa4 {[%clk 00:06:09]} {[%emt
00:02:07]} 0-1

[ePGN "0.1;DGT LiveChess/2.1"]